[Event "*** Titled Tuesday Blitz"]
[Site "Chess.com"]
[Date "2020.11.03"]
[Round "8"]
[White "Grandmaster1369"]
[Black "kinga2008"]
[Result "1-0"]
[WhiteElo "2304"]
[BlackElo "2085"]
[TimeControl "180+1"]
[EndTime "11:28:46 PST"]
[Termination "Grandmaster1369 won by resignation"]

1. e4 {[%clk 0:02:58.8]} 1... c5 {[%clk 0:03:00.9]} 2. c3 {[%clk 0:02:57.5]}
2... d5 {[%clk 0:02:59.6]} 3. exd5 {[%clk 0:02:58.4]} 3... Qxd5 {[%clk
0:03:00.1]} 4. d4 {[%clk 0:02:58.3]} 4... Nc6 {[%clk 0:03:00.1]} 5. Nf3 {[%clk
0:02:58.7]} 5... Bg4 {[%clk 0:02:58.1]} 6. dxc5 {[%clk 0:02:59]} 6... Qxd1+
{[%clk 0:02:45.8]} 7. Kxd1 {[%clk 0:02:56]} 7... e5 {[%clk 0:02:46.7]} 8. b4
{[%clk 0:02:53.2]} 8... e4 {[%clk 0:02:28.9]} 9. h3 {[%clk 0:02:49.9]} 9... Rd8+
{[%clk 0:02:27]} 10. Kc2 {[%clk 0:02:49.4]} 10... Bxf3 {[%clk 0:02:11.4]} 11.
gxf3 {[%clk 0:02:49.2]} 11... exf3 {[%clk 0:02:12.3]} 12. Nd2 {[%clk 0:02:34.1]}
12... Ne5 {[%clk 0:02:06.1]} 13. Bb5+ {[%clk 0:02:26.1]} 13... Ke7 {[%clk
0:02:00.7]} 14. Re1 {[%clk 0:02:25]} 14... f6 {[%clk 0:01:57.8]} 15. Nxf3 {[%clk
0:02:23.8]} 15... Ke6 {[%clk 0:01:55.8]} 16. Bf4 {[%clk 0:02:19]} 16... Nh6
{[%clk 0:01:55]} 17. Nxe5 {[%clk 0:02:13]} 17... fxe5 {[%clk 0:01:52]} 18. Bxe5
{[%clk 0:02:13.9]} 18... Kf5 {[%clk 0:01:49.8]} 19. Bd3+ {[%clk 0:02:13.6]}
19... Kg5 {[%clk 0:01:48.5]} 20. Rg1+ {[%clk 0:02:13.4]} 20... Kh4 {[%clk
0:01:44.4]} 21. Bg3+ {[%clk 0:02:12.6]} 21... Kxh3 {[%clk 0:01:43.9]} 22. Bf1+
{[%clk 0:02:05.1]} 22... Kg4 {[%clk 0:01:42.2]} 23. Bc7+ {[%clk 0:02:05.2]}
23... Kf5 {[%clk 0:01:41.8]} 24. Bxd8 {[%clk 0:02:06.1]} 24... Bxc5 {[%clk
0:01:42.7]} 25. Bd3+ {[%clk 0:02:05.2]} 25... Ke6 {[%clk 0:01:41.4]} 26. Rae1+
{[%clk 0:02:04.7]} 26... Kd7 {[%clk 0:01:40]} 27. Rxg7+ {[%clk 0:02:04.7]} 27...
Kxd8 {[%clk 0:01:37.8]} 28. bxc5 {[%clk 0:02:04.9]} 28... Rf8 {[%clk 0:01:37.1]}
29. Ree7 {[%clk 0:02:02.9]} 29... Rxf2+ {[%clk 0:01:36.5]} 1-0

[Event "*** Titled Tuesday Blitz"]
[Site "Chess.com"]
[Date "2020.11.03"]
[Round "8"]
[White "Nara_Kh"]
[Black "m_ezat"]
[Result "0-1"]
[WhiteElo "2357"]
[BlackElo "2545"]
[TimeControl "180+1"]
[EndTime "11:29:06 PST"]
[Termination "m_ezat won by resignation"]

1. e4 {[%clk 0:03:00.9]} 1... c6 {[%clk 0:02:59.3]} 2. Nc3 {[%clk 0:03:00.5]}
2... d5 {[%clk 0:02:59.5]} 3. Nf3 {[%clk 0:03:00.4]} 3... Bg4 {[%clk 0:02:58.8]}
4. h3 {[%clk 0:03:00.6]} 4... Bh5 {[%clk 0:02:58.3]} 5. g4 {[%clk 0:02:58.8]}
5... Bg6 {[%clk 0:02:57.7]} 6. exd5 {[%clk 0:02:58.5]} 6... cxd5 {[%clk
0:02:58.3]} 7. Bb5+ {[%clk 0:02:58.7]} 7... Nc6 {[%clk 0:02:58.6]} 8. Ne5 {[%clk
0:02:58.1]} 8... Rc8 {[%clk 0:02:59]} 9. d4 {[%clk 0:02:58]} 9... e6 {[%clk
0:02:59]} 10. Be3 {[%clk 0:02:55.8]} 10... Bb4 {[%clk 0:02:56]} 11. Qd2 {[%clk
0:02:29.1]} 11... Ne7 {[%clk 0:02:51.3]} 12. h4 {[%clk 0:02:27.6]} 12... O-O
{[%clk 0:02:38.4]} 13. h5 {[%clk 0:02:24.4]} 13... Be4 {[%clk 0:02:35.9]} 14.
Rg1 {[%clk 0:01:58.7]} 14... Nxe5 {[%clk 0:02:25.5]} 15. dxe5 {[%clk 0:01:57.8]}
15... Qa5 {[%clk 0:02:20.4]} 16. a4 {[%clk 0:01:15.8]} 16... Rxc3 {[%clk
0:02:16.2]} 0-1

[Event "*** Titled Tuesday Blitz"]
[Site "Chess.com"]
[Date "2020.11.03"]
[Round "8"]
[White "LiemLe"]
[Black "seorobert1971"]
[Result "1-0"]
[WhiteElo "2993"]
[BlackElo "2737"]
[TimeControl "180+1"]
[EndTime "11:29:11 PST"]
[Termination "LiemLe won by resignation"]

1. e4 {[%clk 0:03:00.9]} 1... c5 {[%clk 0:03:00]} 2. Nf3 {[%clk 0:03:01.1]} 2...
Nc6 {[%clk 0:03:00.2]} 3. d4 {[%clk 0:03:00.9]} 3... cxd4 {[%clk 0:03:01.1]} 4.
Nxd4 {[%clk 0:03:01.6]} 4... Nf6 {[%clk 0:03:01.4]} 5. Nc3 {[%clk 0:03:02.1]}
5... e6 {[%clk 0:03:01.2]} 6. Nxc6 {[%clk 0:02:59.4]} 6... bxc6 {[%clk
0:03:00.9]} 7. e5 {[%clk 0:02:59.9]} 7... Nd5 {[%clk 0:03:00.8]} 8. Ne4 {[%clk
0:03:00.6]} 8... Qc7 {[%clk 0:03:00]} 9. f4 {[%clk 0:03:01]} 9... Qb6 {[%clk
0:03:00.1]} 10. c4 {[%clk 0:03:00.5]} 10... Bb4+ {[%clk 0:02:59.2]} 11. Ke2
{[%clk 0:02:58.5]} 11... f5 {[%clk 0:02:58.9]} 12. exf6 {[%clk 0:02:51.7]} 12...
Nxf6 {[%clk 0:02:58.5]} 13. Be3 {[%clk 0:02:38.5]} 13... Qd8 {[%clk 0:02:57.7]}
14. Nd6+ {[%clk 0:02:38.1]} 14... Bxd6 {[%clk 0:02:56.4]} 15. Qxd6 {[%clk
0:02:39]} 15... Bb7 {[%clk 0:02:56.4]} 16. Rg1 {[%clk 0:02:29.2]} 16... c5
{[%clk 0:02:44.4]} 17. Qxc5 {[%clk 0:02:19.2]} 17... Rc8 {[%clk 0:02:23.8]} 18.
Qb4 {[%clk 0:02:19.1]} 18... Qc7 {[%clk 0:02:19.3]} 19. Ke1 {[%clk 0:02:13]}
19... Ng4 {[%clk 0:02:06.8]} 20. Bd2 {[%clk 0:01:57.7]} 20... Nxh2 {[%clk
0:01:59.9]} 21. Be2 {[%clk 0:01:57.5]} 21... h5 {[%clk 0:01:46.5]} 22. Rh1
{[%clk 0:01:57.2]} 22... a5 {[%clk 0:01:21.4]} 23. Qxa5 {[%clk 0:01:45]} 23...
Qc6 {[%clk 0:01:17.3]} 24. Rxh2 {[%clk 0:01:44.4]} 24... Qe4 {[%clk 0:01:17]}
25. Qe5 {[%clk 0:01:40.9]} 1-0

[Event "*** Titled Tuesday Blitz"]
[Site "Chess.com"]
[Date "2020.11.03"]
[Round "8"]
[White "yourstrulyme"]
[Black "HanSchut"]
[Result "1-0"]
[WhiteElo "2419"]
[BlackElo "2198"]
[TimeControl "180+1"]
[EndTime "11:29:18 PST"]
[Termination "yourstrulyme won by resignation"]

1. Nf3 {[%clk 0:03:00.9]} 1... Nf6 {[%clk 0:02:59.4]} 2. g3 {[%clk 0:03:01.4]}
2... c5 {[%clk 0:02:59.9]} 3. Bg2 {[%clk 0:03:01.7]} 3... Nc6 {[%clk 0:03:00.5]}
4. O-O {[%clk 0:03:02.1]} 4... d5 {[%clk 0:03:01.1]} 5. d3 {[%clk 0:03:02.1]}
5... g6 {[%clk 0:02:59.1]} 6. Nbd2 {[%clk 0:03:00.5]} 6... Bg7 {[%clk
0:02:59.1]} 7. e4 {[%clk 0:03:00.5]} 7... O-O {[%clk 0:02:57.6]} 8. c3 {[%clk
0:02:56.8]} 8... Be6 {[%clk 0:02:25.3]} 9. e5 {[%clk 0:02:53.5]} 9... Nd7 {[%clk
0:02:20.7]} 10. d4 {[%clk 0:02:54.1]} 10... f6 {[%clk 0:02:18.1]} 11. exf6
{[%clk 0:02:50]} 11... exf6 {[%clk 0:02:18.4]} 12. dxc5 {[%clk 0:02:49.7]} 12...
Nxc5 {[%clk 0:02:16.3]} 13. Re1 {[%clk 0:02:49]} 13... Bf7 {[%clk 0:02:16]} 14.
Nb3 {[%clk 0:02:46.7]} 14... Nxb3 {[%clk 0:02:14.9]} 15. axb3 {[%clk 0:02:47.6]}
15... f5 {[%clk 0:01:59]} 16. Ng5 {[%clk 0:02:45.4]} 16... d4 {[%clk 0:01:49.1]}
17. Nxf7 {[%clk 0:02:33.9]} 17... Rxf7 {[%clk 0:01:46.4]} 18. b4 {[%clk
0:02:10.7]} 18... dxc3 {[%clk 0:01:43.8]} 19. Bd5 {[%clk 0:02:10.6]} 19... cxb2
{[%clk 0:01:33.4]} 20. Bxb2 {[%clk 0:02:10.1]} 20... Bxb2 {[%clk 0:01:33.5]} 21.
Bxf7+ {[%clk 0:02:10]} 21... Kxf7 {[%clk 0:01:33.7]} 22. Qb3+ {[%clk 0:02:10]}
22... Kf6 {[%clk 0:01:16.4]} 23. Qxb2+ {[%clk 0:02:10.9]} 23... Qd4 {[%clk
0:01:16.6]} 24. Qe2 {[%clk 0:01:59.1]} 24... a6 {[%clk 0:01:02.3]} 25. b5 {[%clk
0:01:58.3]} 1-0

[Event "*** Titled Tuesday Blitz"]
[Site "Chess.com"]
[Date "2020.11.03"]
[Round "8"]
[White "Fischerev7"]
[Black "tan275"]
[Result "1-0"]
[WhiteElo "2397"]
[BlackElo "2187"]
[TimeControl "180+1"]
[EndTime "11:29:19 PST"]
[Termination "Fischerev7 won by resignation"]

1. e4 {[%clk 0:03:00.9]} 1... c6 {[%clk 0:02:58.7]} 2. d4 {[%clk 0:03:00.3]}
2... d5 {[%clk 0:02:59.3]} 3. exd5 {[%clk 0:03:00.3]} 3... cxd5 {[%clk
0:02:59.3]} 4. c4 {[%clk 0:03:00.2]} 4... Nf6 {[%clk 0:02:58.5]} 5. Nc3 {[%clk
0:03:00.2]} 5... g6 {[%clk 0:02:58.8]} 6. cxd5 {[%clk 0:02:58.7]} 6... Bg7
{[%clk 0:02:58.6]} 7. Qb3 {[%clk 0:02:58.1]} 7... O-O {[%clk 0:02:57.2]} 8. Be2
{[%clk 0:02:57]} 8... e6 {[%clk 0:02:16.8]} 9. dxe6 {[%clk 0:02:48.4]} 9... Bxe6
{[%clk 0:02:14.6]} 10. Qxb7 {[%clk 0:02:48.3]} 10... Nd5 {[%clk 0:01:44.9]} 11.
Qxa8 {[%clk 0:02:36.6]} 11... Nxc3 {[%clk 0:01:44.2]} 12. bxc3 {[%clk
0:02:34.9]} 12... Bd5 {[%clk 0:01:44.1]} 13. Qxa7 {[%clk 0:02:30.2]} 13... Bxg2
{[%clk 0:01:41.7]} 14. Bf3 {[%clk 0:02:30.5]} 14... Re8+ {[%clk 0:01:40.5]} 15.
Be3 {[%clk 0:02:29.8]} 15... Bxh1 {[%clk 0:01:12.1]} 16. Bxh1 {[%clk 0:02:30.7]}
16... Qc8 {[%clk 0:01:11.5]} 17. Ne2 {[%clk 0:02:26.3]} 17... Nc6 {[%clk
0:01:08.2]} 18. Qc5 {[%clk 0:02:20]} 18... Nxd4 {[%clk 0:00:39.9]} 19. Qxc8
{[%clk 0:02:13.8]} 19... Nc2+ {[%clk 0:00:38.1]} 20. Kd2 {[%clk 0:02:12.2]}
20... Rxc8 {[%clk 0:00:39]} 21. Kxc2 {[%clk 0:02:11.5]} 21... Rxc3+ {[%clk
0:00:38.7]} 22. Nxc3 {[%clk 0:02:11]} 1-0

[Event "*** Titled Tuesday Blitz"]
[Site "Chess.com"]
[Date "2020.11.03"]
[Round "8"]
[White "Radzio1987"]
[Black "olksuna"]
[Result "1-0"]
[WhiteElo "2812"]
[BlackElo "2626"]
[TimeControl "180+1"]
[EndTime "11:29:20 PST"]
[Termination "Radzio1987 won by resignation"]

1. c4 {[%clk 0:02:55.7]} 1... e5 {[%clk 0:02:58.1]} 2. Nc3 {[%clk 0:02:55]} 2...
Bb4 {[%clk 0:02:57.6]} 3. Nd5 {[%clk 0:02:54.3]} 3... Bc5 {[%clk 0:02:57.7]} 4.
e3 {[%clk 0:02:54.5]} 4... Nf6 {[%clk 0:02:56.1]} 5. d4 {[%clk 0:02:53.8]} 5...
Nxd5 {[%clk 0:02:52.6]} 6. dxc5 {[%clk 0:02:53.6]} 6... Nf6 {[%clk 0:02:52.6]}
7. b4 {[%clk 0:02:53]} 7... O-O {[%clk 0:02:50.2]} 8. Bb2 {[%clk 0:02:52.6]}
8... Re8 {[%clk 0:02:47.8]} 9. Nf3 {[%clk 0:02:52.1]} 9... e4 {[%clk 0:02:42.6]}
10. Nd4 {[%clk 0:02:51.2]} 10... b6 {[%clk 0:02:42.2]} 11. cxb6 {[%clk
0:02:45.2]} 11... axb6 {[%clk 0:02:41.2]} 12. Be2 {[%clk 0:02:45.4]} 12... c5
{[%clk 0:02:31.4]} 13. bxc5 {[%clk 0:02:41.5]} 13... bxc5 {[%clk 0:02:30.9]} 14.
Nb5 {[%clk 0:02:42.1]} 14... d5 {[%clk 0:02:22.6]} 15. cxd5 {[%clk 0:02:39.4]}
15... Nxd5 {[%clk 0:02:21.1]} 16. O-O {[%clk 0:02:33.3]} 16... Bb7 {[%clk
0:02:12.3]} 17. Bc4 {[%clk 0:02:26.6]} 17... Nf6 {[%clk 0:01:27.6]} 18. Nd6
{[%clk 0:02:19.9]} 18... Qd7 {[%clk 0:00:27.4]} 19. Bxf7+ {[%clk 0:02:16.2]}
19... Kf8 {[%clk 0:00:26.4]} 20. Bxf6 {[%clk 0:02:11]} 1-0

[Event "*** Titled Tuesday Blitz"]
[Site "Chess.com"]
[Date "2020.11.03"]
[Round "8"]
[White "Karateloru"]
[Black "jefferyx"]
[Result "0-1"]
[WhiteElo "2729"]
[BlackElo "2938"]
[TimeControl "180+1"]
[EndTime "11:29:35 PST"]
[Termination "jefferyx won by resignation"]

1. e4 {[%clk 0:03:00.9]} 1... c5 {[%clk 0:02:59.2]} 2. Nf3 {[%clk 0:03:00.6]}
2... d6 {[%clk 0:02:59.7]} 3. Bb5+ {[%clk 0:02:59.9]} 3... Nd7 {[%clk
0:02:59.6]} 4. c4 {[%clk 0:02:58.1]} 4... Nf6 {[%clk 0:02:57.9]} 5. Nc3 {[%clk
0:02:57.7]} 5... a6 {[%clk 0:02:58.3]} 6. Bxd7+ {[%clk 0:02:57.4]} 6... Bxd7
{[%clk 0:02:55.7]} 7. d4 {[%clk 0:02:58.3]} 7... cxd4 {[%clk 0:02:56.6]} 8. Qxd4
{[%clk 0:02:58.6]} 8... g6 {[%clk 0:02:57.3]} 9. b3 {[%clk 0:02:55.7]} 9... Bg7
{[%clk 0:02:57.3]} 10. Bb2 {[%clk 0:02:55.9]} 10... O-O {[%clk 0:02:57.4]} 11.
O-O {[%clk 0:02:53.8]} 11... b5 {[%clk 0:02:57.8]} 12. cxb5 {[%clk 0:02:52.7]}
12... axb5 {[%clk 0:02:58.7]} 13. Nd5 {[%clk 0:02:52]} 13... Bc6 {[%clk
0:02:53.3]} 14. Qd3 {[%clk 0:02:44.5]} 14... Nxd5 {[%clk 0:02:12.8]} 15. Bxg7
{[%clk 0:02:43.6]} 15... Nf4 {[%clk 0:02:13.7]} 16. Qc2 {[%clk 0:02:43.4]} 16...
Kxg7 {[%clk 0:02:02.7]} 17. Qxc6 {[%clk 0:02:43.2]} 17... Qa5 {[%clk 0:02:03.3]}
18. a4 {[%clk 0:02:31.4]} 18... Rfc8 {[%clk 0:01:51.1]} 19. Qxb5 {[%clk
0:02:30.8]} 19... Qxb5 {[%clk 0:01:51.4]} 20. axb5 {[%clk 0:02:31.6]} 20... Ne2+
{[%clk 0:01:52.3]} 21. Kh1 {[%clk 0:02:31]} 21... Rxa1 {[%clk 0:01:52.7]} 22.
Rxa1 {[%clk 0:02:31]} 22... Rb8 {[%clk 0:01:51.8]} 23. Nd2 {[%clk 0:02:23.5]}
23... Rxb5 {[%clk 0:01:50.9]} 24. g3 {[%clk 0:02:19.8]} 24... Nd4 {[%clk
0:01:50.9]} 25. Rb1 {[%clk 0:02:18.6]} 25... Rb4 {[%clk 0:01:51.2]} 26. Kg2
{[%clk 0:02:17.9]} 26... f5 {[%clk 0:01:50.8]} 27. exf5 {[%clk 0:02:13]} 27...
gxf5 {[%clk 0:01:50.6]} 28. f4 {[%clk 0:02:13.1]} 28... Kf6 {[%clk 0:01:50.5]}
29. Kf2 {[%clk 0:02:13.3]} 29... e5 {[%clk 0:01:50.9]} 30. Ke3 {[%clk
0:02:12.6]} 30... e4 {[%clk 0:01:51.3]} 31. Nc4 {[%clk 0:02:10.1]} 31... Nb5
{[%clk 0:01:44.9]} 32. Kd2 {[%clk 0:02:02.6]} 32... d5 {[%clk 0:01:42.7]} 33.
Nb6 {[%clk 0:02:01.1]} 33... Ke6 {[%clk 0:01:39.7]} 34. Na4 {[%clk 0:02:00.2]}
34... Kd6 {[%clk 0:01:29.5]} 35. Kc2 {[%clk 0:01:55.8]} 35... Na3+ {[%clk
0:01:28]} 36. Kc3 {[%clk 0:01:55.5]} 36... Rxa4 {[%clk 0:01:24.8]} 0-1

[Event "*** Titled Tuesday Blitz"]
[Site "Chess.com"]
[Date "2020.11.03"]
[Round "8"]
[White "Gabrielian_Artur"]
[Black "FMJoseHerrera"]
[Result "1-0"]
[WhiteElo "2798"]
[BlackElo "2581"]
[TimeControl "180+1"]
[EndTime "11:29:39 PST"]
[Termination "Gabrielian_Artur won by resignation"]

1. e4 {[%clk 0:03:00.9]} 1... c5 {[%clk 0:02:57.9]} 2. Nc3 {[%clk 0:03:00.4]}
2... e6 {[%clk 0:02:58]} 3. Nge2 {[%clk 0:02:59.9]} 3... a6 {[%clk 0:02:57.9]}
4. g3 {[%clk 0:03:00]} 4... Qc7 {[%clk 0:02:57.2]} 5. Bg2 {[%clk 0:02:59.9]}
5... b6 {[%clk 0:02:57.5]} 6. O-O {[%clk 0:02:56.8]} 6... Bb7 {[%clk 0:02:57.5]}
7. d4 {[%clk 0:02:56.8]} 7... cxd4 {[%clk 0:02:57.5]} 8. Nxd4 {[%clk 0:02:57.2]}
8... d6 {[%clk 0:02:57.9]} 9. Re1 {[%clk 0:02:56.7]} 9... Nd7 {[%clk 0:02:49.2]}
10. Bg5 {[%clk 0:02:55.6]} 10... g6 {[%clk 0:02:42.6]} 11. Qd2 {[%clk
0:02:39.9]} 11... Bg7 {[%clk 0:01:56.3]} 12. Rad1 {[%clk 0:02:19.5]} 12... Ngf6
{[%clk 0:01:45]} 13. Ndb5 {[%clk 0:02:16.6]} 13... axb5 {[%clk 0:01:44.1]} 14.
Nxb5 {[%clk 0:02:16.4]} 14... Qb8 {[%clk 0:01:43.1]} 15. Nxd6+ {[%clk 0:02:15]}
15... Kf8 {[%clk 0:01:43.5]} 16. Nxb7 {[%clk 0:02:11.3]} 16... Qxb7 {[%clk
0:01:43.7]} 17. e5 {[%clk 0:02:06.6]} 17... Nd5 {[%clk 0:01:43.5]} 18. c4 {[%clk
0:02:05]} 18... Nxe5 {[%clk 0:01:32.8]} 19. cxd5 {[%clk 0:02:00.9]} 19... Re8
{[%clk 0:01:26.2]} 20. dxe6 {[%clk 0:01:54.4]} 20... Nf3+ {[%clk 0:01:25.5]} 21.
Bxf3 {[%clk 0:01:53.3]} 21... Qxf3 {[%clk 0:01:26.4]} 22. e7+ {[%clk 0:01:22.5]}
22... Kg8 {[%clk 0:01:18.4]} 23. Qd7 {[%clk 0:01:21]} 1-0

[Event "*** Titled Tuesday Blitz"]
[Site "Chess.com"]
[Date "2020.11.03"]
[Round "8"]
[White "MoreChessJulia"]
[Black "Sacbutt"]
[Result "0-1"]
[WhiteElo "2068"]
[BlackElo "2298"]
[TimeControl "180+1"]
[EndTime "11:29:53 PST"]
[Termination "Sacbutt won by resignation"]

1. d4 {[%clk 0:02:59.9]} 1... Nf6 {[%clk 0:02:58.9]} 2. c4 {[%clk 0:02:59.6]}
2... e6 {[%clk 0:02:59.1]} 3. Nf3 {[%clk 0:02:59.2]} 3... b6 {[%clk 0:02:58.9]}
4. a3 {[%clk 0:02:59]} 4... Bb7 {[%clk 0:02:57]} 5. g3 {[%clk 0:02:59]} 5... Be7
{[%clk 0:02:56.2]} 6. Bg2 {[%clk 0:02:58.9]} 6... O-O {[%clk 0:02:56.2]} 7. O-O
{[%clk 0:02:58.7]} 7... c5 {[%clk 0:02:55.5]} 8. d5 {[%clk 0:02:51.5]} 8... exd5
{[%clk 0:02:54.6]} 9. Nh4 {[%clk 0:02:51.6]} 9... Ne4 {[%clk 0:02:47.1]} 10. Nf5
{[%clk 0:02:48.4]} 10... d4 {[%clk 0:02:23.2]} 11. Qc2 {[%clk 0:02:38.7]} 11...
d5 {[%clk 0:02:14.1]} 12. cxd5 {[%clk 0:02:35.4]} 12... Nd6 {[%clk 0:02:11.3]}
13. Nxe7+ {[%clk 0:02:30.5]} 13... Qxe7 {[%clk 0:02:11.7]} 14. Bf4 {[%clk
0:02:26.7]} 14... Nd7 {[%clk 0:02:08.7]} 15. Nd2 {[%clk 0:02:22.4]} 15... Nf6
{[%clk 0:02:03.2]} 16. Bg5 {[%clk 0:02:17.9]} 16... h6 {[%clk 0:02:01.4]} 17.
Bxf6 {[%clk 0:02:17.5]} 17... Qxf6 {[%clk 0:02:01.2]} 18. e4 {[%clk 0:02:12.8]}
18... dxe3 {[%clk 0:01:48.6]} 19. fxe3 {[%clk 0:02:12.3]} 19... Qe5 {[%clk
0:01:41.3]} 20. e4 {[%clk 0:02:11]} 20... f5 {[%clk 0:01:36.6]} 21. Rae1 {[%clk
0:02:03.5]} 21... f4 {[%clk 0:01:27]} 22. gxf4 {[%clk 0:02:01.1]} 22... Rxf4
{[%clk 0:01:26.6]} 23. Rxf4 {[%clk 0:02:00.8]} 23... Qxf4 {[%clk 0:01:27.5]} 24.
e5 {[%clk 0:02:01.1]} 24... Nf5 {[%clk 0:01:21.9]} 25. Qe4 {[%clk 0:01:57.7]}
25... Qxd2 {[%clk 0:01:18.8]} 26. Re2 {[%clk 0:01:57.6]} 26... Qd4+ {[%clk
0:01:15.9]} 27. Qxd4 {[%clk 0:01:56.8]} 27... Nxd4 {[%clk 0:01:14.1]} 28. Rd2
{[%clk 0:01:49.8]} 28... Rd8 {[%clk 0:01:05.6]} 29. d6 {[%clk 0:01:48.3]} 29...
Bxg2 {[%clk 0:01:03.9]} 30. Kxg2 {[%clk 0:01:48.2]} 30... Kf7 {[%clk 0:01:03.5]}
31. b4 {[%clk 0:01:46.1]} 31... Ke6 {[%clk 0:01:01.8]} 32. bxc5 {[%clk
0:01:45.9]} 32... bxc5 {[%clk 0:01:02.7]} 33. Rb2 {[%clk 0:01:43.6]} 33... Rd7
{[%clk 0:00:58.6]} 0-1

[Event "*** Titled Tuesday Blitz"]
[Site "Chess.com"]
[Date "2020.11.03"]
[Round "8"]
[White "doons21"]
[Black "andriipalchuk"]
[Result "1-0"]
[WhiteElo "2585"]
[BlackElo "2446"]
[TimeControl "180+1"]
[EndTime "11:30:07 PST"]
[Termination "doons21 won by checkmate"]

1. e4 {[%clk 0:03:00.9]} 1... c6 {[%clk 0:02:50.2]} 2. d4 {[%clk 0:02:59]} 2...
d5 {[%clk 0:02:50.7]} 3. f3 {[%clk 0:02:59.6]} 3... Qb6 {[%clk 0:02:48]} 4. Nc3
{[%clk 0:02:58.9]} 4... dxe4 {[%clk 0:02:47.9]} 5. fxe4 {[%clk 0:02:58.8]} 5...
e5 {[%clk 0:02:48.4]} 6. dxe5 {[%clk 0:02:59.2]} 6... Bc5 {[%clk 0:02:45.4]} 7.
Na4 {[%clk 0:02:59.6]} 7... Qb4+ {[%clk 0:02:39.6]} 8. Nc3 {[%clk 0:02:16.8]}
8... Bxg1 {[%clk 0:02:31.1]} 9. Rxg1 {[%clk 0:02:15.4]} 9... Qc5 {[%clk
0:02:31.7]} 10. Rh1 {[%clk 0:02:12.5]} 10... Qxe5 {[%clk 0:02:31.4]} 11. Qf3
{[%clk 0:02:12.5]} 11... Nf6 {[%clk 0:02:21.8]} 12. Bf4 {[%clk 0:02:11.8]} 12...
Qa5 {[%clk 0:01:23.5]} 13. e5 {[%clk 0:01:54.2]} 13... Nd5 {[%clk 0:00:49.7]}
14. Bd2 {[%clk 0:01:53.8]} 14... Nb4 {[%clk 0:00:49.7]} 15. Bc4 {[%clk
0:01:10.6]} 15... Qxe5+ {[%clk 0:00:40.5]} 16. Kd1 {[%clk 0:01:10.8]} 16... O-O
{[%clk 0:00:39.9]} 17. Re1 {[%clk 0:01:09.8]} 17... Qd4 {[%clk 0:00:39.5]} 18.
Qxf7+ {[%clk 0:01:08.8]} 18... Rxf7 {[%clk 0:00:37.8]} 19. Re8# {[%clk
0:01:09.2]} 1-0

[Event "*** Titled Tuesday Blitz"]
[Site "Chess.com"]
[Date "2020.11.03"]
[Round "8"]
[White "Mbneu"]
[Black "CarlssonLudvig"]
[Result "0-1"]
[WhiteElo "2206"]
[BlackElo "2420"]
[TimeControl "180+1"]
[EndTime "11:30:08 PST"]
[Termination "CarlssonLudvig won by resignation"]

1. d4 {[%clk 0:03:00.9]} 1... Nf6 {[%clk 0:02:57.7]} 2. c4 {[%clk 0:02:55]} 2...
e6 {[%clk 0:02:57.6]} 3. Nc3 {[%clk 0:02:54.2]} 3... Bb4 {[%clk 0:02:57.2]} 4.
Bg5 {[%clk 0:02:54.5]} 4... h6 {[%clk 0:02:55.6]} 5. Bh4 {[%clk 0:02:54.1]} 5...
c5 {[%clk 0:02:55.6]} 6. d5 {[%clk 0:02:54.4]} 6... exd5 {[%clk 0:02:51.5]} 7.
cxd5 {[%clk 0:02:55.3]} 7... d6 {[%clk 0:02:51.5]} 8. e3 {[%clk 0:02:55]} 8...
O-O {[%clk 0:02:51.1]} 9. Bd3 {[%clk 0:02:53.5]} 9... Nbd7 {[%clk 0:02:49.1]}
10. Nf3 {[%clk 0:02:52.5]} 10... Re8 {[%clk 0:02:43.4]} 11. O-O {[%clk
0:02:51.5]} 11... Ne5 {[%clk 0:02:40.1]} 12. Nxe5 {[%clk 0:02:49.1]} 12... Rxe5
{[%clk 0:02:39.9]} 13. e4 {[%clk 0:02:24.1]} 13... c4 {[%clk 0:02:16.3]} 14. Bc2
{[%clk 0:02:15.2]} 14... Qf8 {[%clk 0:02:02.3]} 15. Bxf6 {[%clk 0:02:10.4]}
15... gxf6 {[%clk 0:02:03.2]} 16. f4 {[%clk 0:02:10.5]} 16... Re7 {[%clk
0:01:55.7]} 17. Qh5 {[%clk 0:02:06.7]} 17... Qg7 {[%clk 0:01:47]} 18. Rf3 {[%clk
0:02:05.9]} 18... Bg4 {[%clk 0:01:46.6]} 19. Qxg4 {[%clk 0:01:45.8]} 19... Qxg4
{[%clk 0:01:46.3]} 20. Rg3 {[%clk 0:01:46.5]} 20... f5 {[%clk 0:01:41]} 21. exf5
{[%clk 0:01:39.7]} 21... Bc5+ {[%clk 0:01:37.3]} 22. Kf1 {[%clk 0:01:36.8]}
22... Qxg3 {[%clk 0:01:24.8]} 23. hxg3 {[%clk 0:01:34.6]} 23... Rae8 {[%clk
0:01:25.7]} 24. g4 {[%clk 0:01:18]} 24... f6 {[%clk 0:01:20.7]} 25. g3 {[%clk
0:01:16.9]} 25... b5 {[%clk 0:01:16.1]} 26. Nxb5 {[%clk 0:01:01.9]} 26... Re2
{[%clk 0:01:14.5]} 27. Nc7 {[%clk 0:00:55.7]} 27... Rf2+ {[%clk 0:01:12.5]} 0-1

[Event "*** Titled Tuesday Blitz"]
[Site "Chess.com"]
[Date "2020.11.03"]
[Round "8"]
[White "Keures"]
[Black "chenxiaoyuer"]
[Result "0-1"]
[WhiteElo "2320"]
[BlackElo "2501"]
[TimeControl "180+1"]
[EndTime "11:30:13 PST"]
[Termination "chenxiaoyuer won by resignation"]

1. d4 {[%clk 0:03:00.9]} 1... Nf6 {[%clk 0:02:59.2]} 2. c4 {[%clk 0:03:00.5]}
2... g6 {[%clk 0:02:58.3]} 3. Nc3 {[%clk 0:03:00.1]} 3... Bg7 {[%clk 0:02:57.9]}
4. e4 {[%clk 0:02:59.7]} 4... d6 {[%clk 0:02:57.9]} 5. Nf3 {[%clk 0:02:59.4]}
5... O-O {[%clk 0:02:58]} 6. h3 {[%clk 0:02:59.3]} 6... e5 {[%clk 0:02:57.3]} 7.
d5 {[%clk 0:02:59.2]} 7... a5 {[%clk 0:02:55.7]} 8. g4 {[%clk 0:02:59.2]} 8...
Na6 {[%clk 0:02:54]} 9. Be3 {[%clk 0:02:59]} 9... Nd7 {[%clk 0:02:42.3]} 10. h4
{[%clk 0:02:46.9]} 10... f5 {[%clk 0:02:39.6]} 11. gxf5 {[%clk 0:02:46.5]} 11...
gxf5 {[%clk 0:02:40.5]} 12. exf5 {[%clk 0:02:45.9]} 12... Ndc5 {[%clk
0:02:41.1]} 13. Bh3 {[%clk 0:02:40.4]} 13... e4 {[%clk 0:02:36.2]} 14. Nd4
{[%clk 0:02:29.7]} 14... Nd3+ {[%clk 0:02:24.1]} 15. Kd2 {[%clk 0:02:23.5]}
15... Nac5 {[%clk 0:02:15.3]} 16. Qh5 {[%clk 0:01:56]} 16... Nxb2 {[%clk
0:02:08.7]} 17. Rag1 {[%clk 0:01:46.2]} 17... Nxc4+ {[%clk 0:02:00.1]} 18. Kc1
{[%clk 0:01:44.9]} 18... Nxe3 {[%clk 0:01:46.3]} 19. fxe3 {[%clk 0:01:45.8]}
19... Kh8 {[%clk 0:01:44.4]} 20. Rxg7 {[%clk 0:01:43.3]} 20... Kxg7 {[%clk
0:01:42.6]} 21. f6+ {[%clk 0:00:43.9]} 21... Qxf6 {[%clk 0:01:33.2]} 22. Rf1
{[%clk 0:00:40.5]} 22... Qg6 {[%clk 0:01:29.9]} 23. Qd1 {[%clk 0:00:36.4]} 23...
Rxf1 {[%clk 0:01:12.7]} 0-1